fUSD/lending_fUSD_20240922
["ID","MTS","AMOUNT","RATE_DAILY","PERIOD"]
[338881446,1726999840022,-150.0,0.00012757,2]
[338881447,1726999840032,-150.0,0.0001276,2]
[338881448,1726999840042,-387.67236248,0.00012763,2]
[338881449,1726999840051,-213.0,0.00012763,2]
[338881450,1726999840060,-387.67236248,0.00012776,2]
[338881451,1726999840070,-213.0,0.00012776,2]
[338881452,1726999840079,-150.0,0.00012787,2]
[338881453,1726999840089,-150.0,0.00012789,2]
[338881454,1726999840099,-387.67236248,0.0001279,2]
[338881455,1726999840110,-213.0,0.0001279,2]
[338881456,1726999840120,-8516.4182,0.0001279,2]
[338881457,1726999840130,-67636.1236,0.0001279,2]
[338881458,1726999840139,-6087.78972254,0.00012793,2]
[338881459,1726999840149,-1500.0,0.000128,4]
[338881460,1726999840158,-387.67236248,0.00012803,2]
[338881461,1726999840168,-213.0,0.00012803,2]
[338881462,1726999840178,-1500.0,0.00012806,2]
[338881463,1726999840188,-387.67236248,0.00012816,2]
[338881464,1726999840197,-213.0,0.00012816,2]
[338881465,1726999840207,-242.13851389,0.00012816,2]
[338881466,1726999840217,-150.0,0.00012817,2]
[338881467,1726999840226,-150.0,0.00012824,2]
[338881468,1726999840237,-387.67236248,0.00012829,2]
[338881469,1726999840255,-213.0,0.00012829,2]
[338881470,1726999840265,-272.3254622,0.0001283,2]
[338881471,1726999840274,-387.67236248,0.00012842,2]
[338881472,1726999840284,-213.0,0.00012842,2]
[338881473,1726999840293,-150.0,0.00012845,2]
[338881474,1726999840303,-1000.0,0.00012848,2]
[338881475,1726999840312,-421.967,0.00012849,2]
[338881476,1726999840321,-168.336,0.00012849,2]
[338881477,1726999840330,-150.0,0.0001285,2]
[338881478,1726999840339,-387.67236248,0.00012855,2]
[338881479,1726999840349,-213.0,0.00012855,2]
[338881480,1726999840358,-150.0,0.00012862,2]
[338881481,1726999840367,-150.0,0.00012863,2]
[338881482,1726999840378,-387.67236248,0.00012868,2]
[338881483,1726999840387,-213.0,0.00012868,2]
[338881484,1726999840397,-6276.66917415,0.0001287,2]
[338881485,1726999840407,-150.0,0.00012872,2]
[338881486,1726999840417,-150.0,0.00012873,2]
[338881487,1726999840427,-150.0,0.00012875,2]
[338881488,1726999840436,-197.45493291,0.00012879,2]
[338881489,1726999840446,-15219.08,0.0001288,2]
[338881490,1726999840455,-387.67236248,0.00012881,2]
[338881491,1726999840464,-213.0,0.00012881,2]
[338881492,1726999840473,-150.0,0.00012886,2]
[338881493,1726999840483,-300.0,0.0001289,2]
[338881494,1726999840493,-387.67236248,0.00012894,2]
[338881495,1726999840502,-213.0,0.00012894,2]
[338881496,1726999840511,-150.0,0.00012897,2]
[338881497,1726999840521,-150.0,0.00012898,2]
[338881498,1726999840530,-12367.0023,0.000129,2]
[338881499,1726999840539,-171.39284236,0.000129,2]
[338881500,1726999840548,-3271.6438,0.000129,2]
[338881501,1726999840558,-166.6359028,0.000129,2]
[338881502,1726999840567,-158.8066396,0.000129,2]
[338881503,1726999840576,-300.0,0.000129,4]
[338881504,1726999840585,-169.00379342,0.000129,2]
[338881505,1726999840594,-198.54068962,0.000129,2]
[338881506,1726999840604,-150.0,0.00012902,2]
[338881507,1726999840614,-5867.0,0.00012903,2]
[338881508,1726999840623,-13492.0,0.00012903,2]
[338881509,1726999840633,-150.0,0.00012903,2]
[338881510,1726999840642,-1147.0,0.00012903,2]
[338881511,1726999840651,-1081.0,0.00012903,2]
[338881512,1726999840660,-387.67236248,0.00012908,2]
[338881513,1726999840670,-213.0,0.00012908,2]
[338881514,1726999840679,-1500.0,0.00012911,2]
[338881515,1726999840688,-387.67236248,0.00012921,2]
[338881516,1726999840699,-213.0,0.00012921,2]
[338881517,1726999840709,-150.0,0.0001293,2]
[338881519,1726999840719,-387.67236248,0.00012934,2]
[338881521,1726999840731,-213.0,0.00012934,2]
[338881523,1726999840741,-150.0,0.00012934,2]
[338881525,1726999840751,-1500.0,0.00012937,2]
[338881527,1726999840760,-387.67236248,0.00012947,2]
[338881529,1726999840770,-213.0,0.00012947,2]
[338881532,1726999840781,-150.0,0.00012947,2]
[338881534,1726999840792,-150.0,0.00012958,2]
[338881536,1726999840804,-387.67236248,0.0001296,2]
[338881538,1726999840814,-213.0,0.0001296,2]
[338881540,1726999840824,-150.0,0.00012963,2]
[338881542,1726999840836,-150.0,0.00012964,2]
[338881545,1726999840846,-150.0,0.0001297,2]
[338881547,1726999840857,-6087.78972254,0.00012972,2]
[338881549,1726999840867,-503.97595646,0.00012973,2]
[338881551,1726999840877,-500.0,0.00012973,2]
[338881553,1726999840887,-150.0,0.00012973,2]
[338881555,1726999840897,-387.67236248,0.00012973,2]
[338881557,1726999840907,-213.0,0.00012973,2]
[338881559,1726999840918,-150.0,0.00012977,2]
[338881561,1726999840928,-150.0,0.00012978,2]
[338881563,1726999840937,-150.0,0.00012979,2]
[338881565,1726999840947,-387.67236248,0.00012986,2]
[338881567,1726999840956,-150.0,0.00012986,2]
[338881569,1726999840966,-213.0,0.00012986,2]
[338881571,1726999840975,-150.0,0.00012986,2]
[338881573,1726999840985,-150.0,0.00012986,2]
[338881575,1726999840994,-153.74,0.0001299,2]
[338881577,1726999841003,-153.74,0.0001299,2]
[338881579,1726999841013,-153.74,0.0001299,2]
[338881581,1726999841023,-153.74,0.0001299,2]
[338881584,1726999841032,-153.74,0.0001299,2]
[338881586,1726999841042,-153.74,0.0001299,2]
[338881588,1726999841052,-153.74,0.0001299,2]
[338881590,1726999841061,-153.74,0.0001299,2]
[338881591,1726999841071,-153.74,0.0001299,2]
[338881593,1726999841080,-153.74,0.0001299,2]
[338881595,1726999841090,-153.74,0.0001299,2]
[338881597,1726999841099,-153.74,0.0001299,2]
[338881600,1726999841110,-202945.14808916,0.00013,2]
[338881602,1726999841119,-14868.3,0.00013,2]
[338881604,1726999841128,-405095.17074012,0.00013,2]
[338881606,1726999841142,-2949.88708974,0.00013,2]
[338881608,1726999841153,-2949.88708974,0.00013,2]
[338881610,1726999841164,-2900.0,0.00013,2]
[338881612,1726999841176,-3809.7,0.00013,2]
[338881615,1726999841187,-1988.94713654,0.00013,2]
[338881617,1726999841198,-426.29666635,0.00013,2]
[338881619,1726999841209,-10861.38663438,0.00013,2]
[338881621,1726999841221,-837.41646503,0.00013,2]
[338881626,1726999841261,-330.96523758,0.00012686,2]
[338881628,1726999841270,-876.83876242,0.00013,2]
[338881630,1726999841289,-377.33075256,0.00013,2]
[338881631,1726999841301,-2950.69991356,0.00013,2]
[338881632,1726999841312,-601.40731094,0.00013,2]
[338881633,1726999841327,-2776.9,0.00013,2]
[338881634,1726999841343,-2198.14,0.00013,2]
[338881635,1726999841355,-971.83264649,0.00013,2]
[338881648,1726999843314,-710.44995138,0.00012654,2]
[338881650,1726999843324,-27836.15470282,0.00013,2]
[338881651,1726999843340,-6377.06905138,0.00013,2]
[338881652,1726999843418,-5600.45753548,0.00013,2]
[338881653,1726999843429,-5722.24100985,0.00013,2]
[338881654,1726999843575,-301.6,0.00013,2]
[338881657,1726999846372,-10007.15578158,0.00013,2]
[338881658,1726999846480,-12744.0,0.00013,2]
[338881660,1726999874116,651.08,0.00010959,2]
[338881661,1726999984338,1100.0,0.00012,2]
[338881662,1727000100801,238.73,0.00010182,2]
[338881663,1727000228911,250.0,0.00012024,2]
[338881664,1727000263451,170.84,0.00010959,2]
[338881665,1727000324246,400.0,0.00011922,2]
[338881666,1727000344682,21472.0,0.00011937,2]
[338881667,1727000437606,284.23,0.00011847,2]
[338881668,1727000473626,210.64,0.00011857,2]
[338881670,1727000635446,234.66,9.93e-05,2]
[338881671,1727000702485,163.9,0.00011841,2]
[338881672,1727000702564,150.0,0.00011688,2]
[338881673,1727000702713,163.9,0.0001186,2]
[338881674,1727000702907,163.9,0.0001188,2]
[338881675,1727000703118,150.0,0.00011719,2]
[338881676,1727000703151,163.9,0.000119,2]
[338881677,1727000703454,150.0,0.00011751,2]
[338881678,1727000703774,150.0,0.00011783,2]
[338881679,1727000704174,150.0,0.00011814,2]
[338881680,1727000704544,150.0,0.00011846,2]
[338881681,1727000704917,150.0,0.00011878,2]
[338881682,1727000705367,150.0,0.00011909,2]
[338881683,1727000705680,150.0,0.00011941,2]
[338881684,1727000706034,150.0,0.00011973,2]
[338881685,1727000706344,150.0,0.00012004,2]
[338881686,1727000707743,250.0,0.00011841,2]
[338881687,1727000721246,150.0,0.00011688,2]
[338881688,1727000721730,150.0,0.00011806,2]
[338881689,1727000722131,150.0,0.00011924,2]
[338881691,1727000732414,150.0,0.00011688,2]
[338881692,1727000732732,150.0,0.0001173,2]
[338881693,1727000733050,150.0,0.00011771,2]
[338881694,1727000733392,150.0,0.00011813,2]
[338881695,1727000733714,150.0,0.00011855,2]
[338881696,1727000734052,150.0,0.00011897,2]
[338881697,1727000734379,150.0,0.00011939,2]
[338881698,1727000734684,150.0,0.00011981,2]
[338881699,1727000735020,150.0,0.00012023,2]
[338881700,1727000751445,150.0,0.00011688,2]
[338881701,1727000756112,150.0,0.00011688,2]
[338881702,1727000761885,150.0,0.00011688,2]
[338881703,1727000793524,249.21,0.00010959,2]
[338881706,1727000834345,169.59,0.00011537,2]
[338881707,1727000874700,680.0,0.00011535,2]
[338881829,1727001002961,288.53,0.00011535,2]
[338881830,1727001003453,151.32,0.00012026,2]
[338881842,1727001031765,-150.0,0.00012036,2]
[338881844,1727001031775,-150.0,0.00012042,2]
[338881846,1727001031786,-150.0,0.00012065,2]
[338881847,1727001031795,-150.0,0.00012068,2]
[338881848,1727001031804,-150.0,0.00012099,2]
[338881849,1727001031814,-150.0,0.00012107,2]
[338881850,1727001031823,-150.0,0.00012121,2]
[338881851,1727001031834,-150.0,0.00012131,2]
[338881852,1727001031844,-150.0,0.00012148,2]
[338881853,1727001031854,-150.0,0.0001216,2]
[338881855,1727001031864,-499.99,0.0001216,2]
[338881857,1727001031874,-2111.04,0.0001216,2]
[338881859,1727001031884,-150.0,0.00012163,2]
[338881860,1727001031894,-150.0,0.0001219,2]
[338881861,1727001031904,-234.66,0.00012194,2]
[338881862,1727001031914,-150.0,0.00012194,2]
[338881863,1727001031924,-150.0,0.00012226,2]
[338881864,1727001031936,-150.0,0.00012232,2]
[338881865,1727001031947,-150.0,0.00012258,2]
[338881866,1727001031957,-150.0,0.00012274,2]
[338881867,1727001031970,-150.0,0.00012278,2]
[338881868,1727001031981,-150.0,0.00012289,2]
[338881869,1727001031991,-300.0,0.000123,4]
[338881870,1727001032001,-150.0,0.00012316,2]
[338881871,1727001032012,-150.0,0.00012321,2]
[338881872,1727001032022,-150.0,0.00012337,2]
[338881873,1727001032032,-1638.399,0.00012348,2]
[338881874,1727001032042,-150.0,0.00012348,2]
[338881875,1727001032052,-150.0,0.00012353,2]
[338881876,1727001032061,-150.0,0.00012358,2]
[338881877,1727001032071,-150.0,0.00012384,2]
[338881878,1727001032080,-150.0,0.00012396,2]
[338881879,1727001032090,-150.0,0.000124,2]
[338881880,1727001032099,-600.0,0.000124,4]
[338881881,1727001032109,-150.0,0.00012416,2]
[338881882,1727001032119,-150.0,0.00012442,2]
[338881883,1727001032129,-150.0,0.00012448,2]
[338881884,1727001032138,-150.0,0.0001248,2]
[338881885,1727001032148,-150.0,0.00012484,2]
[338881886,1727001032157,-169.22,0.00012495,2]
[338881887,1727001032167,-900.0,0.000125,4]
[338881888,1727001032178,-150.0,0.00012511,2]
[338881889,1727001032191,-150.0,0.00012514,2]
[338881890,1727001032201,-150.0,0.00012525,2]
[338881891,1727001032210,-171.11,0.00012538,2]
[338881892,1727001032222,-150.0,0.00012543,2]
[338881893,1727001032233,-150.0,0.00012553,2]
[338881894,1727001032242,-150.0,0.00012567,2]
[338881895,1727001032252,-150.0,0.00012575,2]
[338881896,1727001032264,-1200.0,0.000126,4]
[338881897,1727001032274,-150.0,0.00012606,2]
[338881898,1727001032284,-150.0,0.00012609,2]
[338881899,1727001032294,-150.0,0.00012632,2]
[338881900,1727001032305,-150.0,0.00012638,2]
[338881901,1727001032315,-150.0,0.00012651,2]
[338881902,1727001032324,-150.0,0.0001267,2]
[338881903,1727001032334,-150.0,0.00012693,2]
[338881904,1727001032344,-300.0,0.000127,2]
[338881905,1727001032354,-2656.85681389,0.000127,2]
[338881906,1727001032367,-614.78698611,0.000127,2]
[338881907,1727001032376,-1802.86179471,0.000127,2]
[338881910,1727001037618,-303.36010893,0.000127,2]
[338881911,1727001038021,-10260.78039636,0.000127,2]
[338881912,1727001038031,-1500.0,0.000127,4]
[338881913,1727001038039,-6381.08010157,0.000127,2]
[338881914,1727001038048,-150.0,0.00012701,2]
[338881915,1727001038058,-150.0,0.0001273,2]
[338881916,1727001038067,-150.0,0.00012733,2]
[338881917,1727001038077,-150.0,0.00012735,2]
[338881918,1727001038087,-150.0,0.00012747,2]
[338881919,1727001038098,-150.0,0.0001275,2]
[338881922,1727001038109,-150.0,0.00012751,2]
[338881924,1727001038121,-7497.98,0.00012764,2]
[338881926,1727001038131,-150.0,0.00012765,2]
[338881928,1727001038142,-272.3254622,0.00012765,2]
[338881930,1727001038152,-242.13851389,0.00012766,2]
[338881932,1727001038162,-150.0,0.00012769,2]
[338881934,1727001038171,-150.0,0.00012771,2]
[338881936,1727001038181,-503.97595646,0.00012773,2]
[338881938,1727001038196,-150.0,0.00012773,2]
[338881939,1727001038205,-150.0,0.00012777,2]
[338881940,1727001038216,-150.0,0.00012784,2]
[338881941,1727001038227,-275.33879611,0.00012788,2]
[338881942,1727001038237,-1500.0,0.00012795,2]
[338881943,1727001038247,-150.0,0.00012796,2]
[338881944,1727001038257,-245000.0,0.000128,2]
[338881945,1727001038267,-384.435,0.000128,2]
[338881947,1727001038277,-172.053,0.000128,2]
[338881948,1727001038287,-300.0,0.000128,4]
[338881949,1727001038298,-150.0,0.00012814,2]
[338881950,1727001038308,-150.0,0.00012819,2]
[338881951,1727001038318,-150.0,0.00012819,2]
[338881952,1727001038327,-150.0,0.00012828,2]
[338881953,1727001038337,-413.4364122,0.00012844,2]
[338881954,1727001038348,-150.0,0.00012848,2]
[338881955,1727001038358,-150.0,0.0001286,2]
[338881956,1727001038368,-150.0,0.00012861,2]
[338881957,1727001038379,-150.0,0.00012868,2]
[338881958,1727001038388,-150.0,0.00012869,2]
[338881959,1727001038398,-6276.66917415,0.0001287,2]
[338881960,1727001038408,-111639.72085124,0.0001287,2]
[338881961,1727001038418,-1000.0,0.00012877,2]
[338881962,1727001038428,-1000.0,0.00012877,2]
[338881963,1727001038438,-1000.0,0.00012877,2]
[338881964,1727001038447,-1000.0,0.00012877,2]
[338881965,1727001038457,-1000.0,0.00012877,2]
[338881966,1727001038466,-1000.0,0.00012877,2]
[338881967,1727001038482,-1000.0,0.00012877,2]
[338881968,1727001038491,-1000.0,0.00012877,2]
[338881969,1727001038501,-1000.0,0.00012877,2]
[338881970,1727001038510,-1000.0,0.00012877,2]
[338881971,1727001038519,-1000.0,0.00012877,2]
[338881972,1727001038529,-1000.0,0.00012877,2]
[338881973,1727001038538,-1000.0,0.00012877,2]
[338881974,1727001038548,-1000.0,0.00012877,2]
[338881975,1727001038557,-1000.0,0.00012877,2]
[338881976,1727001038568,-6381.08010151,0.00012889,2]
[338881977,1727001038578,-150.0,0.00012891,2]
[338881978,1727001038588,-500.0,0.00012896,2]
[338881979,1727001038598,-2385.9428,0.000129,2]
[338881980,1727001038607,-171.39284236,0.000129,2]
[338881981,1727001038617,-166.63590278,0.000129,2]
[338881982,1727001038627,-300.0,0.000129,4]
[338881983,1727001038636,-1000.0,0.000129,2]
[338881984,1727001038646,-198.54068962,0.000129,2]
[338881985,1727001038655,-1128.21599642,0.000129,2]
[338881986,1727001038665,-169.00379342,0.000129,2]
[338881987,1727001038675,-150.0,0.00012903,2]
[338881988,1727001038684,-1262.0,0.00012903,2]
[338881989,1727001038693,-5867.0,0.00012903,2]
[338881990,1727001038703,-1549.0,0.00012903,2]
[338881991,1727001038713,-1147.0,0.00012903,2]
[338881992,1727001038724,-150.0,0.00012911,2]
[338881993,1727001038734,-150.0,0.00012923,2]
[338881994,1727001038744,-197.45493291,0.00012923,2]
[338881995,1727001038753,-150.0,0.00012925,2]
[338881996,1727001038763,-150.0,0.00012932,2]
[338881997,1727001038772,-150.0,0.00012937,2]
[338881998,1727001038782,-150.0,0.00012944,2]
[338881999,1727001038793,-150.0,0.0001295,2]
[338882000,1727001038803,-150.0,0.00012954,2]
[338882001,1727001038812,-150.0,0.00012955,2]
[338882002,1727001038821,-1500.0,0.00012958,2]
[338882003,1727001038831,-1500.0,0.00012965,2]
[338882004,1727001038840,-150.0,0.0001297,2]
[338882005,1727001038849,-150.0,0.00012972,2]
[338882006,1727001038858,-500.0,0.00012973,2]
[338882007,1727001038867,-500.0,0.00012973,2]
[338882008,1727001038876,-500.0,0.00012973,2]
[338882009,1727001038884,-680.0,0.00012977,2]
[338882010,1727001038894,-150.0,0.0001298,2]
[338882011,1727001038902,-150.0,0.00012984,2]
[338882012,1727001038911,-265.08543736,0.00012986,2]
[338882013,1727001038920,-150.0,0.00012986,2]
[338882014,1727001038929,-195.0,0.00012986,2]
[338882015,1727001038938,-150.0,0.00012986,2]
[338882016,1727001038947,-150.0,0.00012986,2]
[338882017,1727001038957,-150.0,0.00012986,2]
[338882018,1727001038966,-153.74,0.0001299,2]
[338882019,1727001038976,-153.74,0.0001299,2]
[338882020,1727001038985,-153.74,0.0001299,2]
[338882021,1727001038994,-153.74,0.0001299,2]
[338882022,1727001039003,-153.74,0.0001299,2]
[338882023,1727001039012,-153.74,0.0001299,2]
[338882024,1727001039021,-153.74,0.0001299,2]
[338882025,1727001039029,-153.74,0.0001299,2]
[338882026,1727001039038,-153.74,0.0001299,2]
[338882027,1727001039046,-153.74,0.0001299,2]
[338882028,1727001039055,-153.74,0.0001299,2]
[338882029,1727001039064,-153.74,0.0001299,2]
[338882030,1727001039074,-1500.0,0.00012991,2]
[338882031,1727001039083,-326.69611156,0.00012999,2]
[338882032,1727001039093,-15074.79,0.00012999,2]
[338882033,1727001039103,-202945.14808916,0.00013,2]
[338882034,1727001039111,-55956.33635769,0.00013,2]
[338882048,1727001040416,-13492.0,0.00012903,2]
[338882049,1727001040427,-329828.33680545,0.00013,2]
[338882050,1727001040439,-2552.79540001,0.00013,2]
[338882051,1727001040453,-873.54463651,0.00013,2]
[338882057,1727001042783,-558.0,0.00012903,2]
[338882058,1727001042794,-1396.82818247,0.00013,2]
[338882060,1727001045715,-205.6,0.00012968,2]
[338882061,1727001045726,-29126.65805248,0.00013,2]
[338882062,1727001045737,-265.54825626,0.00013,2]
[338882063,1727001045861,-500.0,0.00012773,2]
[338882064,1727001045872,-43.25037363,0.00013,2]
[338882066,1727001272312,251.99,9.997e-05,2]
[338882067,1727001280004,250.0,0.00011903,2]
[338882068,1727001396088,169.17,0.00011889,2]
[338882069,1727001472059,592.0,0.00011889,2]
[338882070,1727001540789,159.53,0.00011889,2]
[338882071,1727001552599,-251.99,0.00012261,2]
[338882072,1727001552813,-690.600222,0.00012542,2]
[338882073,1727001552843,-707.64733332,0.00012542,2]
[338882074,1727001552871,-165.63091281,0.00012599,2]
[338882075,1727001552900,-300.0,0.00012599,2]
[338882076,1727001552929,-4314.5775,0.000126,2]
[338882077,1727001552958,-4932.0,0.000126,2]
[338882078,1727001552988,-3215.2012,0.000127,2]
[338882079,1727001553019,-300.0,0.00012733,2]
[338882080,1727001553047,-1102.68423057,0.0001274,2]
[338882081,1727001553076,-1924.12226617,0.0001274,2]
[338882082,1727001553105,-150.0,0.0001274,2]
[338882083,1727001553136,-150.0,0.0001275,2]
[338882084,1727001553164,-1500.0,0.00012772,2]
[338882085,1727001553193,-499.99,0.00012772,2]
[338882086,1727001553222,-150.0,0.00012777,2]
[338882087,1727001553252,-39210.55633513,0.0001278,2]
[338882088,1727001592083,349.76,0.00011975,2]
[338882089,1727001609314,-562.8305692,0.00013,3]
[338882090,1727001614639,-300.0,0.00012779,2]
[338882091,1727001614674,-10586.1694308,0.0001278,2]
[338882092,1727001628130,11509.0,0.000103,5]
[338882093,1727001650957,167.02,0.00011962,2]
[338882094,1727001665325,325.54,0.00010959,2]
[338882095,1727001676110,580.8,0.00010959,2]
[338882096,1727001708516,1866.08,0.00011923,2]
[338882097,1727001711059,250.0,0.00011923,2]
[338882098,1727001762085,3151.81,0.00011919,2]
[338882099,1727001810144,452.22,0.00010959,2]
[338882100,1727001819248,263.32,9.999e-05,2]
[338882101,1727001831183,189.11,0.00010959,2]
[338882102,1727001841791,157.59,0.00010959,2]
[338882103,1727001852348,787.98,0.00010959,2]
[338882104,1727001853604,250.0,0.00011915,2]
[338882105,1727001903648,223.8937903,0.00011688,2]
[338882106,1727001903952,223.8937903,0.00011701,2]
[338882107,1727001904310,223.8937903,0.00011714,2]
[338882108,1727001905205,223.8937903,0.00011727,2]
[338882109,1727001905734,223.8937903,0.0001174,2]
[338882110,1727001906319,223.8937903,0.00011753,2]
[338882111,1727001906655,223.8937903,0.00011766,2]
[338882112,1727001907162,223.8937903,0.00011779,2]
[338882113,1727001907752,223.8937903,0.00011793,2]
[338882114,1727001908520,223.8937903,0.00011806,2]
[338882115,1727001908871,223.8937903,0.00011819,2]
[338882116,1727001909193,223.8937903,0.00011832,2]
[338882117,1727001909545,223.8937903,0.00011845,2]
[338882118,1727001909868,223.8937903,0.00011858,2]
[338882119,1727001910203,223.8937903,0.00011871,2]
[338882120,1727001910547,223.8937903,0.00011884,2]
[338882121,1727001911350,223.8937903,0.00011898,2]
[338882122,1727001911686,223.8937903,0.00011911,2]
[338882123,1727001912060,223.8937903,0.00011924,2]
[338882124,1727001912398,223.8937903,0.00011937,2]
[338882125,1727001912728,223.8937903,0.0001195,2]
[338882126,1727001913043,223.8937903,0.00011963,2]
[338882127,1727001913375,223.8937903,0.00011976,2]
[338882128,1727001913711,223.8937903,0.00011989,2]
[338882129,1727001914052,223.8937903,0.00012002,2]
[338882130,1727001914519,223.8937903,0.00012016,2]
[338882131,1727001914759,223.8937903,0.00012029,2]
[338882132,1727001943436,183.09290719,0.00011688,2]
[338882133,1727001943762,183.09290719,0.00011701,2]
[338882134,1727001944091,183.09290719,0.00011714,2]
[338882135,1727001944419,183.09290719,0.00011727,2]
[338882136,1727001944765,183.09290719,0.0001174,2]
[338882137,1727001945354,183.09290719,0.00011753,2]
[338882138,1727001945574,183.09290719,0.00011766,2]
[338882139,1727001946262,183.09290719,0.00011779,2]
[338882140,1727001946682,183.09290719,0.00011793,2]
[338882141,1727001947049,183.09290719,0.00011806,2]
[338882142,1727001947377,183.09290719,0.00011819,2]
[338882143,1727001947735,183.09290719,0.00011832,2]
[338882144,1727001948082,183.09290719,0.00011845,2]
[338882145,1727001948384,183.09290719,0.00011858,2]
[338882146,1727001948703,183.09290719,0.00011871,2]
[338882147,1727001949490,183.09290719,0.00011884,2]
[338882148,1727001949804,183.09290719,0.00011898,2]
[338882149,1727001950122,183.09290719,0.00011911,2]
[338882150,1727001950478,183.09290719,0.00011924,2]
[338882151,1727001950967,183.09290719,0.00011937,2]
[338882152,1727001951149,183.09290719,0.0001195,2]
[338882153,1727001951503,183.09290719,0.00011963,2]
[338882154,1727001951818,183.09290719,0.00011976,2]
[338882155,1727001952143,183.09290719,0.00011989,2]
[338882156,1727001952497,183.09290719,0.00012002,2]
[338882157,1727001952819,183.09290719,0.00012016,2]
[338882158,1727001953171,183.09290719,0.00012029,2]
[338882159,1727001971192,272.28009169,0.00011994,2]
[338882160,1727001976119,272.28009168,0.00012007,2]
[338882161,1727001982454,4453.820278,0.00011981,2]
[338882162,1727001987591,150.0,0.00011688,2]
[338882163,1727001987942,150.0,0.00011713,2]
[338882164,1727001988304,150.0,0.00011738,2]
[338882165,1727001988645,150.0,0.00011763,2]
[338882166,1727001989030,150.0,0.00011788,2]
[338882167,1727001989369,150.0,0.00011813,2]
[338882168,1727001989871,150.0,0.00011838,2]
[338882169,1727001990240,150.0,0.00011862,2]
[338882170,1727001990607,150.0,0.00011887,2]
[338882171,1727001991030,150.0,0.00011912,2]
[338882172,1727001991363,150.0,0.00011937,2]
[338882173,1727001991678,150.0,0.00011962,2]
[338882174,1727001991989,150.0,0.00011987,2]
[338882175,1727001992328,150.0,0.00012012,2]
[338882176,1727001996108,3568.67,0.00011636,2]
[338882177,1727002008323,150.0,0.00011688,2]
[338882178,1727002008654,150.0,0.00011904,2]
[338882179,1727002015753,150.0,0.00011688,2]
[338882180,1727002019183,150.0,0.00011688,2]
[338882181,1727002019504,150.0,0.00011718,2]
[338882182,1727002019852,150.0,0.00011748,2]
[338882183,1727002020180,150.0,0.00011778,2]
[338882184,1727002020554,150.0,0.00011808,2]
[338882185,1727002020872,150.0,0.00011839,2]
[338882186,1727002021194,150.0,0.00011869,2]
[338882187,1727002021509,150.0,0.00011899,2]
[338882188,1727002021848,150.0,0.00011929,2]
[338882189,1727002022172,150.0,0.00011959,2]
[338882190,1727002022496,150.0,0.0001199,2]
[338882191,1727002022817,150.0,0.0001202,2]
[338882201,1727002032437,200.0,0.00011377,2]
[338882202,1727002038071,150.03489884,0.00011688,2]
[338882203,1727002039969,150.0,0.00011688,2]
[338882206,1727002042906,150.03638702,0.00011688,2]